bitfinex-derivatives/quotes_ETHF0:USTF0_20251012
["timestamp","ask_amount","ask_price","bid_price","bid_amount"]
[1760300152353,0.612,4126.2,4126.1,3.64374]
[1760300152552,0.3742,4126.2,4126.1,3.64374]
[1760300154054,0.8674,4126.2,4126.1,3.64374]
[1760300154263,0.8674,4126.2,4126.1,3.2078]
[1760300156163,0.8674,4126.2,4126.1,3.64374]
[1760300158060,0.3742,4126.2,4126.1,3.64374]
[1760300160864,0.1559,4126.5,4126.1,3.64374]
[1760300160865,0.5301,4126.5,4126.4,0.43591]
[1760300161264,1.0233,4126.5,4126.4,0.43591]
[1760300161765,0.3742,4126.4,4126.2,0.43592]
[1760300161964,0.1559,4126.5,4126.1,3.2078]
[1760300162268,0.7679,4126.5,4126.4,0.43591]
[1760300162464,0.5301,4126.5,4126.4,0.43591]
[1760300163763,0.7679,4126.5,4126.4,0.43591]
[1760300164164,1.0096,4126.5,4126.4,0.43591]
[1760300164662,1.0096,4126.5,4126.1,3.2078]
[1760300164663,0.6354,4126.5,4126.1,3.2078]
[1760300164866,0.8712,4126.3,4126.2,0.43592]
[1760300165764,0.3891,4126.2,4126.1,3.2078]
[1760300165968,0.6295,4126.2,4126.1,3.64374]
[1760300166770,0.3891,4126.2,4126.1,3.64374]
[1760300170269,0.8712,4126.2,4126.1,3.64374]
[1760300170672,0.3891,4126.2,4126.1,3.64374]
[1760300173172,0.545,4126.5,4126.4,0.43591]
[1760300173479,0.1559,4126.5,4126.4,0.43591]
[1760300175682,0.545,4126.5,4126.4,0.43591]
[1760300175982,0.7854,4126.5,4126.4,0.43591]
[1760300177481,0.545,4126.5,4126.4,0.43591]
[1760300178585,0.638,4126.5,4126.4,0.43591]
[1760300178786,1.0271,4126.5,4126.4,0.43591]
[1760300179689,0.8712,4126.2,4125.8,3.04412236]
[1760300179890,1.0246,4126.0,4125.9,0.43596]
[1760300186978,0.6355,4125.5,4125.4,0.00170704]
[1760300187293,1.0246,4125.5,4125.4,0.00170704]
[1760300187487,1.0246,4125.5,4125.4,0.43771704]
[1760300187789,0.1534,4126.0,4125.4,0.43771704]
[1760300187790,0.1534,4126.0,4125.9,0.43596]
[1760300188187,3.2078,4126.4,4125.8,3.2078]
[1760300188391,0.1559,4126.5,4126.3,3.2078]
[1760300188591,0.1559,4126.5,4126.4,0.43591]
[1760300189788,0.39189326,4127.4,4127.3,0.43581]
[1760300190792,0.87399326,4127.4,4127.3,0.43581]
[1760300191488,0.63229326,4127.4,4127.3,0.43581]
[1760300191789,0.3891,4127.3,4127.2,0.43582]
[1760300191986,0.00279326,4127.4,4127.2,0.43582]
[1760300192386,0.3891,4128.3,4128.2,0.43572]
[1760300193391,0.39091536,4128.3,4128.2,0.43572]
[1760300193788,0.00181536,4128.3,4128.2,0.43572]
[1760300193993,3.2078,4129.2,4128.1,1.08932]
[1760300194184,0.3515,4129.3,4129.2,0.43561]
[1760300195190,0.3539993,4129.3,4129.2,0.43762152]
[1760300195394,0.3539993,4129.3,4129.2,0.00201152]
[1760300195592,3.5617993,4129.3,4129.2,0.00201152]
[1760300196596,0.3539993,4129.3,4129.2,0.00201152]
[1760300196985,0.0024993,4129.3,4129.2,0.00201152]
[1760300197295,0.1534,4130.0,4129.9,0.43554]
[1760300197889,0.5049,4130.0,4129.9,0.43554]
[1760300198292,0.50759628,4130.0,4129.9,0.43554]
[1760300199191,0.50759628,4130.0,4129.7,0.43555]
[1760300199396,0.50759628,4130.0,4129.6,3.2078]
[1760300199397,0.1411,4129.5,4129.3,0.4356]
[1760300199601,0.3515,4129.4,4129.3,0.4356]
[1760300203800,0.5983,4129.4,4129.2,0.00201152]
[1760300204097,0.8453,4129.3,4129.2,0.00201152]
[1760300206502,0.2373,4128.1,4128.0,3.2078]
[1760300206802,0.36,4128.1,4128.0,3.2078]
[1760300207601,0.36,4128.1,4128.0,3.21017165]
[1760300207803,0.36,4128.1,4128.0,0.00237165]
[1760300209798,3.2078,4128.8,4128.7,0.43566]
[1760300210700,3.2078,4129.4,4129.3,0.4356]
[1760300211803,3.5678,4129.4,4129.3,0.4356]
[1760300214002,3.5678,4129.4,4127.4,13.07385]
[1760300214003,0.1516,4128.5,4128.4,0.43569]
[1760300214602,0.5116,4128.5,4128.4,0.43569]
[1760300216503,0.1516,4129.0,4128.4,0.43569]
[1760300216716,0.5116,4129.0,4128.5,3.2078]
[1760300216901,0.1516,4129.0,4128.5,3.2078]
[1760300217100,0.1516,4129.0,4128.9,0.43564]
[1760300217506,3.2078,4129.4,4129.0,1.08908]
[1760300217708,0.36,4129.3,4129.2,0.43561]
[1760300218012,0.36,4129.9,4129.1,3.2078]
[1760300218208,0.15429628,4130.0,4129.9,0.43554]
[1760300218209,0.51429628,4130.0,4129.9,0.43554]
[1760300219305,0.43554,4129.9,4129.7,0.43555]
[1760300219504,0.36,4129.9,4129.7,0.43555]
[1760300219811,0.36,4129.9,4129.8,0.43555]
[1760300220809,3.8490422,4129.9,4128.6,3.2078]
[1760300221015,0.36,4129.3,4129.2,0.43561]
[1760300221805,0.36,4129.3,4129.0,0.43562]
[1760300221806,0.43561,4129.2,4129.0,0.43562]
[1760300222013,0.1516,4129.0,4128.6,3.2078]
[1760300222215,0.5116,4129.0,4128.9,0.43564]
[1760300224318,0.43573,4128.1,4128.0,0.00237165]
[1760300224909,0.78163,4128.1,4128.0,0.00237165]
[1760300225414,0.3459,4128.4,4128.3,0.4357]
[1760300226911,0.3459,4128.1,4128.0,0.00237165]
[1760300228619,3.5537,4128.4,4128.0,1.09171165]
[1760300228813,0.3459,4128.8,4128.2,3.2078]
[1760300229117,0.3459,4128.8,4128.7,0.43566]
[1760300229716,0.7816,4128.4,4128.0,0.00237165]
[1760300229921,0.78159,4128.4,4128.0,0.00237165]
[1760300230120,0.3459,4128.3,4128.2,0.43572]
[1760300231319,3.351,4128.5,4128.4,0.43569]
[1760300231519,0.1516,4129.0,4128.9,0.43564]
[1760300231820,0.4975,4129.0,4128.9,0.43564]
[1760300234923,0.43565,4128.8,4128.7,3.2078]
[1760300235525,0.4357,4128.3,4128.2,3.2078]
[1760300235719,0.7816,4128.3,4128.2,3.2078]
[1760300236711,0.43573,4128.1,4128.0,0.00237165]
[1760300237022,0.78163,4128.1,4128.0,0.00237165]
[1760300239928,0.78172,4127.2,4127.1,3.2078]
[1760300240430,0.3459,4126.9,4126.6,3.2078]
[1760300240720,0.43593,4126.2,4126.1,6.24388038]
[1760300240925,0.78386682,4126.2,4126.1,3.03852015]
[1760300241126,0.78386682,4126.2,4126.1,0.00243977]
[1760300241422,0.78386682,4126.2,4125.6,3.2078]
[1760300241423,0.78188,4125.7,4125.6,3.2078]
[1760300242424,0.78188,4125.7,4125.6,3.2101698]
[1760300243019,0.78188,4125.7,4123.2,11.3442716]
[1760300243020,0.4891,4124.5,4124.2,13.20008038]
[1760300243220,0.3459,4124.3,4124.2,13.20008038]
[1760300243420,0.3459,4124.3,4124.2,10.164]
[1760300243615,0.1432,4124.5,4124.2,10.164]
[1760300243821,0.3459,4125.1,4124.4,3.2078]
[1760300244128,0.4891,4124.5,4124.4,3.21068326]
[1760300245529,0.43611,4124.6,4124.4,3.21068326]
[1760300247421,3.2078,4125.3,4124.4,3.64679326]
[1760300247621,0.3459,4125.2,4124.4,3.21068326]
[1760300247827,0.3459,4125.2,4125.1,3.2078]
[1760300248625,0.43602,4125.3,4125.1,3.2078]
[1760300248626,0.43603,4125.3,4125.1,3.2078]
[1760300248927,0.3459,4125.7,4125.1,3.2078]
[1760300248928,0.43601,4125.4,4125.1,3.2078]
[1760300249124,0.43603,4125.3,4125.1,3.2078]
[1760300251427,0.3459,4125.2,4125.1,3.2078]
[1760300253134,0.3459,4125.2,4124.7,0.43608]
[1760300253336,0.43606,4125.0,4124.7,0.43608]
[1760300253537,0.3704,4125.8,4124.6,3.2078]
[1760300253726,0.3704,4125.8,4125.2,0.43602]
[1760300254226,0.436,4125.5,4125.1,3.2078]
[1760300254433,0.43601,4125.4,4125.1,3.2078]
[1760300254626,0.43601,4125.4,4125.1,3.64384]
[1760300257340,0.43601,4125.4,4125.2,0.65413]
[1760300257929,0.3704,4125.6,4125.2,0.65413]
[1760300258537,0.43601,4125.4,4125.2,0.65413]
[1760300258738,0.43601,4125.4,4125.2,0.2181]
[1760300259331,0.3704,4125.3,4125.2,0.2181]
[1760300259830,0.43601,4125.4,4125.2,0.2181]
[1760300260024,0.43602,4125.3,4125.2,0.2181]
[1760300260627,0.43601,4125.5,4125.2,0.65413]
[1760300260828,0.43599,4125.6,4125.3,0.43602]
[1760300261141,2.17939,4126.7,4125.3,0.43602]
[1760300261142,3.351,4127.0,4125.6,1.08998]
[1760300261336,0.43589,4126.6,4126.3,0.43591]
[1760300261534,3.2078,4127.0,4126.7,0.43587]
[1760300261836,0.43584,4127.1,4126.5,3.2078]
[1760300261837,0.43583,4127.1,4126.5,3.2078]
[1760300262037,0.3704,4127.3,4126.4,3.2078]
[1760300262337,0.43587,4126.8,4126.5,0.43589]
[1760300262541,0.43585,4127.0,4126.5,0.43589]
[1760300262740,0.37270228,4127.3,4126.5,0.43589]
[1760300263138,0.43587,4126.7,4126.5,0.43589]
[1760300263339,0.43587,4126.7,4126.4,3.2078]
[1760300263534,0.43587,4126.7,4126.4,3.6437]
[1760300263941,0.43589,4126.6,4126.4,3.2078]
[1760300264437,0.43587,4126.8,4126.5,0.43589]
[1760300264743,0.43587,4126.7,4126.4,3.2078]
[1760300264940,0.43589,4126.6,4126.4,3.2078]
[1760300265345,0.43588,4126.6,4126.4,3.6437]
[1760300265544,0.43587,4126.8,4126.4,3.6437]
[1760300265747,0.43587,4126.8,4126.5,0.43589]
[1760300266245,0.43588,4126.7,4126.5,0.43589]
[1760300266638,0.00230228,4127.3,4127.1,0.43583]
[1760300266843,0.00230228,4127.3,4127.0,3.2078]
[1760300267140,1.23467,4128.0,4127.0,3.2078]
[1760300267141,4.29713,4128.1,4127.3,0.43581]
[1760300267346,0.43577,4127.8,4127.4,0.4358]
[1760300267640,0.43573,4128.1,4127.9,0.43574]
[1760300267837,1.08919,4128.6,4128.0,3.2078]
[1760300268036,1.08919,4128.6,4126.9,4.12569038]
[1760300268037,0.3642,4127.9,4127.3,3.2078]
[1760300268246,0.3642,4127.7,4127.3,3.21003216]
[1760300268744,0.8,4127.4,4127.3,3.21003216]
[1760300269440,0.3642,4127.8,4127.3,3.21003216]
[1760300269639,0.00193249,4128.6,4127.3,3.21003216]
[1760300269640,0.3642,4128.3,4127.5,0.43579]
[1760300269942,0.43574,4128.0,4127.9,3.2078]
[1760300270637,0.93784,4128.0,4127.9,3.2078]
[1760300270842,0.3642,4127.4,4127.3,0.00223216]
[1760300271940,0.43579,4127.5,4127.3,0.00223216]
[1760300272145,1.08932,4128.1,4127.3,0.43804216]
[1760300272345,0.43578,4127.6,4127.3,0.43804216]
[1760300272741,0.43576,4127.8,4127.3,0.43804216]
[1760300272941,0.43577,4127.7,4127.3,0.00223216]
[1760300273248,0.4358,4127.4,4127.3,0.00223216]
[1760300277747,0.8,4127.4,4127.3,0.00223216]
[1760300277946,0.4358,4127.4,4127.3,0.00223216]
[1760300278951,0.8,4127.4,4127.3,0.00223216]
[1760300279648,0.4358,4127.4,4127.3,0.00223216]
[1760300282652,0.7817,4127.4,4127.3,0.00223216]
[1760300282853,1.2628,4127.4,4127.3,0.00223216]
[1760300283456,0.7817,4127.4,4127.3,0.00223216]
[1760300283850,1.2628,4127.4,4127.3,0.00223216]
[1760300284755,1.0239,4127.4,4127.3,0.00223216]
[1760300286352,1.0239,4127.4,4127.2,0.2183]
[1760300286353,1.26281,4127.3,4127.2,2.16e-06]
[1760300286554,1.26287,4126.7,4126.6,3.2078]
[1760300287159,1.26291,4126.4,4126.3,0.2709]
[1760300287362,1.26291,4126.4,4126.3,0.27361043]
[1760300288454,1.08956,4127.2,4126.3,0.27361043]
[1760300288758,1.08959,4127.1,4126.3,0.70953043]
[1760300289162,0.43586,4126.9,4126.6,3.2078]
[1760300289356,0.3459,4127.2,4126.6,3.2078]
[1760300289958,0.3459,4127.2,4126.4,3.47198038]
[1760300289959,3.2078,4127.9,4127.1,3.2078]
[1760300290154,0.43574,4128.0,4127.8,3.2078]
[1760300290357,3.2078,4128.4,4127.8,3.2078]
[1760300290755,0.00193249,4128.6,4128.3,3.2078]
[1760300290958,0.3459,4128.5,4128.3,3.2078]
[1760300291358,0.00193249,4128.6,4128.4,0.43569]
[1760300291659,3.3543,4129.5,4128.3,3.2078]
[1760300291660,3.2078,4129.5,4128.3,6.24388038]
[1760300291962,3.2078,4129.5,4128.9,3.2078]
[1760300292162,0.43561,4129.2,4128.9,3.2078]
[1760300292558,0.43802739,4129.2,4128.9,3.2078]
[1760300292758,0.00241739,4129.2,4128.9,3.2078]
[1760300294060,0.3459,4130.3,4128.9,3.2078]
[1760300294259,3.2078,4130.4,4129.6,3.2078]
[1760300294463,0.43551,4130.2,4129.6,3.2078]
[1760300294660,0.43552,4130.1,4129.6,3.2078]
[1760300294963,0.43555,4129.8,4129.6,3.2105527]
[1760300295363,0.05269454,4129.9,4129.6,3.2105527]
[1760300295764,0.48823454,4129.9,4129.6,3.2105527]
[1760300296066,0.43555,4129.8,4129.6,3.2105527]
[1760300296364,0.05269454,4129.9,4129.6,3.2105527]
[1760300297058,0.05269454,4129.9,4129.6,3.6461127]
[1760300297763,3.2078,4130.4,4129.6,3.2105527]
[1760300297956,3.2078,4131.4,4130.1,3.2078]
[1760300298161,3.2078,4131.9,4130.8,0.43543]
[1760300298355,3.2078,4131.9,4130.6,3.2078]
[1760300298561,3.2078,4131.9,4131.1,3.2078]
[1760300298755,3.2078,4131.9,4130.7,1.08863]
[1760300298756,0.00281725,4131.9,4131.6,3.64315]
[1760300298970,0.00281725,4131.9,4131.6,3.2078]
[1760300299265,0.43814725,4131.9,4131.6,3.2078]
[1760300299461,0.00281725,4131.9,4131.6,3.2078]
[1760300299662,0.43814725,4131.9,4131.6,3.2078]
[1760300299859,0.43534,4131.8,4131.6,3.2078]
[1760300300069,0.00281725,4131.9,4131.0,4.79470973]
[1760300300070,0.00281725,4131.9,4131.0,3.2078]
[1760300300365,0.43536,4131.6,4131.0,3.2078]
[1760300300767,0.43536,4131.6,4131.0,3.64322]
[1760300300968,0.43537,4131.5,4131.0,3.2078]
[1760300301164,0.43538,4131.4,4131.0,3.2078]
[1760300301868,0.00281725,4131.9,4131.0,3.2078]
[1760300302170,0.43537,4131.5,4131.0,3.2078]
[1760300302365,0.00281725,4131.9,4131.1,4.79470973]
[1760300302571,0.43814725,4131.9,4131.6,3.2078]
[1760300303377,0.43534,4131.8,4131.6,3.2078]
[1760300303864,3.2078,4132.6,4131.6,3.2078]
[1760300304064,3.2078,4132.6,4132.1,3.2078]
[1760300304267,3.2078,4133.1,4132.1,3.6431]
[1760300304562,0.43525,4132.7,4132.2,0.43529]
[1760300304767,0.00210434,4132.7,4132.3,0.43528]
[1760300304964,0.43734434,4132.7,4132.1,3.6431]
[1760300305466,0.43526,4132.6,4132.1,3.6431]
[1760300305768,0.43527,4132.5,4132.1,3.2078]
[1760300305972,0.00210434,4132.7,4132.1,3.2078]
[1760300306272,0.43528,4132.4,4132.1,3.2078]
[1760300306666,0.00210434,4132.7,4132.1,3.4785]
[1760300306873,0.43528,4132.4,4132.1,3.4785]
[1760300307072,0.00210434,4132.7,4132.1,3.9138]
[1760300307276,0.43526,4132.5,4132.1,3.4785]
[1760300307973,0.00210434,4132.7,4132.1,3.4785]
[1760300308271,0.1465,4132.5,4132.1,3.4785]
[1760300308770,0.3459,4132.4,4132.1,3.4785]
[1760300309271,0.1465,4132.5,4132.3,0.43527]
[1760300312168,0.3459,4133.4,4133.1,0.4352]
[1760300312367,0.3459,4133.4,4133.3,3.2078]
[1760300312772,0.3403,4133.9,4133.4,0.43517]
[1760300313170,0.14957226,4133.5,4133.4,5.23190828]
[1760300313980,0.19957226,4133.5,4133.4,5.23190828]
[1760300314868,0.53987226,4133.5,4133.4,0.00202855]
[1760300315073,0.19957226,4133.5,4133.4,0.00202855]
[1760300315872,0.97503226,4133.5,4133.4,0.00202855]
[1760300322582,0.43528,4132.3,4132.2,3.2078]
[1760300322880,0.77558,4132.3,4132.2,3.2078]
[1760300323676,0.77558,4132.3,4132.2,3.21038315]
[1760300324182,0.3403,4132.3,4132.2,3.21038315]
[1760300330779,0.77558,4132.3,4132.2,3.21038315]
[1760300332477,0.3403,4132.3,4132.2,3.21038315]
[1760300332677,0.3403,4132.3,4132.2,3.64567315]
[1760300334781,0.1399,4132.5,4132.4,0.43527]
[1760300335082,0.1399,4132.5,4132.4,5.22997973]
[1760300338291,0.4916,4132.5,4132.4,5.22997973]
[1760300338584,0.1399,4132.5,4132.4,5.22997973]
[1760300338790,0.4916,4132.5,4132.4,5.22997973]
[1760300339786,0.92686,4132.5,4132.3,0.2706]
[1760300339986,0.3517,4132.4,4132.3,0.2706]
[1760300340686,0.1399,4132.5,4132.4,0.43527]
[1760300340886,0.1399,4132.5,4132.4,5.22997973]
[1760300341388,0.19957226,4133.5,4132.5,1.08816]
[1760300341588,0.1465,4134.0,4133.8,0.43512]
[1760300341892,0.1465,4134.0,4133.9,3.2078]
[1760300342597,0.14922982,4134.0,4133.9,3.2078]
[1760300342786,0.1355,4134.5,4134.0,0.4351]
[1760300342991,0.1355,4134.5,4133.9,3.2078]
[1760300342992,0.1355,4134.5,4134.4,3.2078]
[1760300343291,0.4929,4134.5,4134.4,3.2078]
[1760300343686,0.1355,4134.5,4134.4,3.2078]
[1760300343888,0.13857866,4134.5,4134.4,3.2078]
[1760300344591,0.49597866,4134.5,4134.4,3.2078]
[1760300354088,0.54597866,4134.5,4134.4,3.2078]
[1760300354290,0.18857866,4134.5,4134.4,3.64286]
[1760300354500,1.08732,4135.8,4134.4,3.64286]
[1760300354501,0.3574,4135.6,4135.2,0.43497]
[1760300354799,0.43492,4135.8,4134.7,1.08757]
[1760300354800,0.3574,4135.8,4135.4,5.22966973]
[1760300355200,0.79236,4135.4,4135.3,3.2078]
[1760300355396,0.3574,4134.9,4134.8,3.03608038]
[1760300355700,0.3574,4134.8,4134.7,3.2078]
[1760300355892,0.3574,4134.8,4134.7,3.21063253]
[1760300356602,1.28312,4134.8,4134.7,3.21063253]
[1760300356899,0.79242,4134.8,4134.7,3.21063253]
[1760300357689,0.3574,4134.8,4134.7,3.64566253]
[1760300357886,0.1435,4135.0,4134.9,0.43501]
[1760300358190,0.1355,4135.5,4134.8,1.08756]
[1760300358390,0.1355,4135.5,4135.3,8.43746973]
[1760300359301,0.13789143,4135.5,4135.3,8.43746973]
[1760300359701,0.13789143,4135.5,4135.3,8.00250973]
[1760300359894,0.93024143,4135.5,4135.3,8.00250973]
[1760300360400,0.20546255,4135.5,4135.3,8.00250973]
[1760300360599,0.34896255,4135.5,4135.3,8.00250973]
[1760300360798,0.43496,4135.4,4135.3,3.2078]
[1760300361395,0.43698708,4135.4,4135.3,3.2078]
[1760300362602,0.43501,4134.9,4134.8,3.2078]
[1760300362895,0.79241,4134.9,4134.8,3.2078]
[1760300363196,0.00202708,4135.4,4134.8,3.2078]
[1760300363397,0.5009,4136.5,4135.4,1.08739]
[1760300363700,0.43485,4136.4,4135.8,3.64271]
[1760300363896,0.57834,4136.5,4135.9,0.4349]
[1760300364097,0.43487,4136.2,4135.8,6.24388038]
[1760300364300,0.43657477,4136.2,4135.8,6.24388038]
[1760300364495,0.00170477,4136.2,4135.8,3.64271]
[1760300364894,0.00170477,4136.2,4135.9,3.03608038]
[1760300365201,0.1435,4136.0,4135.9,3.03608038]
[1760300365396,0.1435,4136.0,4135.8,3.2078]
[1760300365699,0.57839,4136.0,4135.8,3.2078]
[1760300366298,0.1435,4136.0,4135.9,0.2704]
[1760300366600,0.3574,4137.1,4136.1,0.43488]
[1760300366797,0.43482,4136.8,4136.6,3.2078]
[1760300366994,0.3574,4136.7,4136.6,3.2078]
[1760300367594,0.35993858,4136.7,4136.6,3.2078]
[1760300368503,0.00253858,4136.7,4136.6,3.2078]
[1760300369005,0.35993858,4136.7,4136.6,3.2078]
[1760300369997,0.00253858,4136.7,4136.6,3.2078]
[1760300370197,0.35993858,4136.7,4136.6,3.2078]
[1760300372204,0.00253858,4136.7,4136.6,3.2078]
[1760300372497,0.35993858,4136.7,4136.6,3.2078]
[1760300374795,0.60563858,4136.7,4136.6,3.2078]
[1760300374999,0.35993858,4136.7,4136.6,3.2078]
[1760300375400,0.84253858,4136.7,4136.6,3.2078]
[1760300375601,0.35993858,4136.7,4136.6,3.2078]
[1760300375902,0.59513858,4136.7,4136.6,3.2078]
[1760300376304,0.80058,4136.1,4136.0,3.2078]
[1760300380112,0.5121,4136.0,4135.9,0.2704]
[1760300381714,0.9947,4136.0,4135.9,0.2704]
[1760300382311,0.9947,4136.0,4135.5,3.2078]
[1760300382312,0.2352,4135.6,4135.5,3.2078]
[1760300382619,1.28324,4135.6,4135.5,3.2078]
[1760300382815,1.28324,4135.6,4134.7,0.00283253]
[1760300382816,0.91759,4135.1,4135.0,3.2078]
[1760300383012,0.80072,4134.8,4134.7,0.00283253]
[1760300383711,0.3731,4134.9,4134.7,0.00283253]
[1760300383914,0.43502,4134.8,4134.7,0.00283253]
[1760300384116,0.80812,4134.8,4134.7,0.00283253]
[1760300385317,4.01592,4134.8,4134.7,0.00283253]
[1760300385913,0.5843,4134.0,4133.9,3.2078]
[1760300386113,0.9574,4134.0,4133.9,3.2078]
[1760300386913,0.9574,4134.0,4133.9,3.21063476]
[1760300387408,0.9574,4134.0,4133.9,0.00283476]
[1760300389013,0.5223,4134.0,4133.9,0.00283476]
[1760300391011,3.18202948,4134.0,4133.9,0.00283476]
[1760300391517,0.5223,4134.0,4133.9,0.00283476]
[1760300393620,0.80832,4132.9,4132.8,3.2078]
[1760300393814,0.3731,4132.9,4132.8,3.2078]
[1760300394619,0.37622704,4132.9,4132.8,3.21015265]
[1760300396223,0.84732704,4132.9,4132.8,3.21015265]
[1760300396423,0.37622704,4132.9,4132.8,3.21015265]
[1760300396623,0.81144704,4132.9,4132.8,3.21015265]
[1760300396923,1.03964704,4132.9,4132.8,3.21015265]
[1760300397123,1.28254704,4132.9,4132.8,3.21015265]
[1760300398626,0.84732704,4132.9,4132.8,3.21015265]
[1760300398825,1.28254704,4132.9,4132.8,3.21015265]
[1760300399922,0.84732704,4132.9,4132.8,3.21015265]
[1760300400620,0.37622704,4132.9,4132.8,3.64538265]
[1760300400821,0.37622704,4132.9,4132.8,3.21015265]
[1760300401617,1.03964704,4132.9,4132.8,3.21015265]
[1760300401823,0.60442704,4132.9,4132.8,3.21015265]
[1760300402126,0.37622704,4132.9,4132.8,3.21015265]
[1760300402327,0.81144704,4132.9,4132.8,3.21015265]
[1760300402529,1.03964704,4132.9,4132.8,3.21015265]
[1760300403629,1.28254704,4132.9,4132.8,3.21015265]
[1760300404625,1.03964704,4132.9,4132.8,3.21015265]
[1760300404929,0.37622704,4132.9,4132.8,3.21015265]
[1760300406231,0.00312704,4132.9,4132.8,3.64538265]
[1760300406531,0.33972704,4132.9,4132.8,3.64538265]
[1760300407528,0.00312704,4132.9,4132.8,3.64538265]
[1760300408932,0.1492,4133.5,4133.4,0.43517]
[1760300409132,0.1492,4133.5,4133.0,0.4352]
[1760300409329,0.3366,4133.4,4133.3,3.2078]
[1760300409534,0.1492,4133.5,4133.4,0.43517]
[1760300409830,0.48809852,4133.5,4133.4,0.43517]
[1760300410534,0.1492,4134.0,4133.8,0.43512]
[1760300410834,3.2078,4134.7,4133.3,8.64533215]
[1760300410835,2.86890148,4134.7,4133.9,4.29559]
[1760300411030,0.4725,4135.0,4134.4,3.2078]
[1760300411743,0.13792284,4135.0,4134.5,0.43505]
[1760300411924,0.13792284,4135.0,4134.9,3.2078]
[1760300412938,0.00202284,4135.0,4134.9,3.2078]
[1760300413337,3.2078,4136.4,4135.8,0.43491]
[1760300413532,0.3366,4136.3,4135.5,3.2078]
[1760300413732,0.3366,4135.9,4135.5,3.2078]
[1760300413935,0.1359,4136.0,4135.5,3.2078]
[1760300414136,0.3366,4135.9,4135.5,3.2078]
[1760300414436,0.3366,4135.8,4135.5,3.64447659]
[1760300415331,0.3366,4136.8,4135.6,5.43753215]
[1760300415533,0.43482,4136.7,4136.0,0.43489]
[1760300415832,0.3366,4136.6,4136.1,0.43488]
[1760300416038,0.4725,4136.5,4136.0,3.2078]
[1760300416334,0.00288428,4136.5,4136.3,0.43486]
[1760300416533,0.00288428,4136.5,4136.1,0.43488]
[1760300416732,0.00288428,4136.5,4136.0,3.2078]
[1760300416733,0.47538428,4136.5,4136.0,3.64269]
[1760300416928,0.1359,4137.5,4136.0,3.64269]
[1760300416929,0.3366,4137.4,4136.4,5.43753215]
[1760300417233,0.4725,4137.0,4136.9,3.2078]
[1760300417539,0.1359,4137.5,4136.9,3.2078]
[1760300418139,0.3366,4137.4,4136.9,3.2078]
[1760300418334,0.13891686,4137.5,4136.4,5.43753215]
[1760300418335,0.4725,4137.0,4136.4,3.2078]
[1760300418643,0.4725,4136.5,4136.4,3.2078]
[1760300418839,0.90734,4136.5,4136.4,3.2078]
[1760300419135,0.1359,4137.0,4136.4,3.2078]
[1760300419341,0.13891686,4137.5,4136.9,3.2078]
[1760300420034,0.57365686,4137.5,4136.9,3.2078]
[1760300420239,0.4725,4137.0,4136.9,3.2078]
[1760300422045,0.90729,4137.0,4136.9,3.2078]
[1760300423641,0.1359,4136.5,4136.4,3.2078]
[1760300423849,0.4725,4136.5,4136.4,3.2078]
[1760300424145,0.1359,4136.5,4136.4,3.2078]
[1760300424843,0.13891686,4137.5,4136.4,3.2078]
[1760300424844,0.00301686,4137.5,4136.4,3.2078]
[1760300425048,0.4725,4137.0,4136.9,3.2078]
[1760300425246,0.1359,4136.5,4136.4,3.2078]
[1760300425548,0.4725,4136.5,4136.4,3.2078]
[1760300426248,0.4725,4136.5,4135.9,3.2078]
[1760300426249,0.1359,4136.0,4135.9,3.2078]
[1760300426761,0.4725,4136.0,4135.9,3.2078]
[1760300427350,0.90739,4136.0,4135.9,3.2078]
[1760300428060,0.4725,4136.0,4135.9,3.2078]
[1760300429857,0.4725,4136.0,4135.9,3.20779997]
[1760300430751,0.77154,4135.6,4135.5,0.00173659]
[1760300430957,0.3366,4135.6,4134.8,3.2078]
[1760300431164,0.77167,4134.3,4134.2,3.2078]
[1760300432059,0.77448366,4134.3,4134.2,3.21023208]
[1760300433563,0.00281366,4134.3,4134.2,7.99367176]
[1760300433866,0.1359,4134.5,4134.2,7.99367176]
[1760300433867,0.1359,4135.0,4134.8,0.43501]
[1760300434161,0.1359,4135.0,4134.2,9.08138176]
[1760300434162,0.3676,4134.9,4134.7,3.2078]
[1760300434564,0.3676,4134.9,4134.7,3.64282]
[1760300434756,0.43686614,4134.9,4134.7,3.2078]
[1760300434958,0.43686614,4134.9,4134.2,3.21023208]
[1760300434959,0.43507,4134.3,4134.2,3.21023208]
[1760300435160,0.80267,4134.3,4134.2,3.21023208]
[1760300438863,0.1336,4134.5,4134.2,3.21023208]
[1760300439067,0.00185614,4134.9,4134.4,4.78343968]
[1760300439371,0.36945614,4134.9,4134.4,4.78343968]
[1760300439669,0.36945614,4134.9,4134.4,5.21848968]
[1760300439863,0.43686614,4134.9,4134.4,5.21848968]
[1760300440362,0.3676,4134.8,4134.4,5.21848968]
[1760300440759,0.00185614,4134.9,4134.5,0.43505]
[1760300441158,0.36945614,4134.9,4134.5,2.15547078]
[1760300441366,0.00185614,4134.9,4134.5,2.15547078]
[1760300441670,0.00185614,4134.9,4134.5,2.59052078]
[1760300442069,0.00185614,4134.9,4134.8,3.2078]
[1760300442070,0.36945614,4134.9,4134.8,3.2078]
[1760300443264,0.00185614,4134.9,4134.8,3.64282]
[1760300443468,0.00185614,4134.9,4134.8,3.2078]
[1760300443866,0.36945614,4134.9,4134.8,3.2078]
[1760300444266,0.80267,4134.3,4134.2,3.21023208]
[1760300444670,0.3676,4134.3,4134.2,3.21023208]
[1760300448776,0.1336,4134.5,4134.2,3.64531208]
[1760300448968,0.43506,4134.4,4134.2,3.21023208]
[1760300449766,0.3649,4134.3,4134.2,3.21023208]
[1760300450767,0.1336,4134.5,4134.2,3.21023208]
[1760300450969,0.79996,4134.4,4134.2,3.21023208]
[1760300451370,0.3649,4134.3,4134.2,3.21023208]
[1760300453574,0.56865,4134.5,4134.2,3.21023208]